Cogmind - Beta 13 X2 @@@ ROGUE MODE // 2024.01.10 @ 23:04:46 Player: arkn Result: Destroyed by D-53 Grenadier with Mini Grenade Launcher Performance ------------- Evolutions (0) 0 Regions Visited (2) 400 Robots Destroyed (18) 90 Value Destroyed (275) 275 Prototype IDs (0) 0 Alien Tech Used (0) 0 Bonus (0) 0 TOTAL SCORE: 765 Bonus ------- None Cogmind --------- Core Integrity 0/250 Matter 33/300 Energy 78/100 System Corruption 2% Temperature Cool (0) Movement Rolling (100) Location -10/Mines Parts ------- > --- POWER (1) -------- (None) > --- PROPULSION (2) --- Compact Wheel Compact Wheel > --- UTILITY (2) ------ Large Storage Unit Propulsion Shielding > --- WEAPON (2) ------- Assault Rifle > --- INVENTORY (15) --- Compact Wheel Compact Wheel Compact Wheel Large Storage Unit Sensor Array Sensor Array Signal Interpreter Seismic Detector Propulsion Shielding Light Armor Plating Tractor Beam EM Pulse Gun Grenade Launcher Rocket Launcher Mining Claw Peak State ------------ > --- POWER ------------ Light Ion Engine > --- PROPULSION ------- Aluminum Leg Aluminum Leg > --- UTILITY ---------- Medium Storage Unit Seismic Detector > --- WEAPON ----------- Assault Rifle Assault Rifle > --- INVENTORY -------- Ion Engine Light Treads Light Treads Compact Wheel Compact Wheel Small Storage Unit Sensor Array Seismic Detector EM Pulse Gun Mining Claw [Rating: 8] Favorites ----------- Power Ion Engine Engine Ion Engine Propulsion Compact Wheel Leg Aluminum Leg Wheel Compact Wheel Utility Seismic Detector Device Seismic Detector Storage Large Storage Unit Protection Propulsion Shielding Weapon Assault Rifle Energy Gun EM Pulse Gun Ballistic Gun Assault Rifle Launcher Grenade Launcher Slashing Weapon Mining Claw Build | -11 -10 -10 ------- Run | Yrd Mat Min Slots Evolved . | . . . Power . | . . . Propulsion . | . . . Utility . | . . . Weapon . | . . . Parts Attached 23 | 2 17 4 Power 1 | . 1 . Engine 1 | . 1 . Core . | . . . Reactor . | . . . Propulsion 3 | . 2 1 Treads . | . . . Leg . | . . . Wheel 3 | . 2 1 Hover . | . . . Flight . | . . . Utility 9 | 1 7 1 Device 4 | 1 3 . Storage 2 | . 2 . Processor . | . . . Hackware . | . . . Protection 3 | . 2 1 Artifact . | . . . Weapon 10 | 1 7 2 Energy Gun 1 | . 1 . Energy Cannon . | . . . Ballistic Gun 5 | 1 3 1 Ballistic Cannon . | . . . Launcher 1 | . . 1 Special Weapon . | . . . Impact Weapon . | . . . Slashing Weapon 3 | . 3 . Piercing Weapon . | . . . Special Melee Weapon . | . . . Unidentified Prototypes . | . . . Parts Lost 4 | . 2 2 Power 1 | . . 1 Propulsion . | . . . Utility 1 | . 1 . Weapon 2 | . 1 1 Highest Loss Streak 2 | . 1 2 To Critical Strikes . | . . . Average Slot Usage (%) 99 | . 99 100 Engine 14 | . 14 14 Leg 10 | . 13 . Wheel 17 | . 14 28 Device 12 | . 12 14 Storage 14 | . 14 14 Energy Gun 2 | . 3 . Ballistic Gun 18 | . 15 27 Slashing Weapon 6 | . 8 . Naked Turns . | . . . Heaviest Build 30 | 13 30 30 Greatest Support 32 | 20 32 32 Greatest Overweight (x) . | . . . Average Overweight (x) . | . . . Largest Inventory Capacity 15 | 8 15 15 Average Capacity 11 | 8 11 15 Most Carried 15 | 7 13 15 Average Carried 10 | 6 10 13 Final Capacity 15 | 8 15 15 Final Carried 15 | 7 12 15 Class Distribution -------------------- 100% | Mutant Dominant Class ---------------- Mutant | -10/Materials Mutant | -10/Mines Resources | -11 -10 -10 ----------- Run | Yrd Mat Min Matter Collected 443 | 280 121 42 Remotely . | . . . Salvage Created 447 | 132 261 54 Parts 35 | 9 20 6 Haulers Intercepted 1 | . 1 . Recyclers Shooed 2 | . 2 . Parts Field Recycled . | . . . Retrieved Matter . | . . . Parts Self-Destructed . | . . . Prevented . | . . . Kills | -11 -10 -10 ------- Run | Yrd Mat Min Combat Hostiles Destroyed 10 | . 8 2 Guns 8 | . 8 . AOE 2 | . . 2 Classes Destroyed 7 | 2 4 1 Worker 1 | . 1 . Builder 1 | . . 1 Tunneler 4 | 4 . . Hauler 1 | . 1 . Recycler 1 | 1 . . Swarmer 5 | . 5 . Grunt 5 | . 3 2 Best Kill Streak 4 | 4 4 3 Combat Bots Only 3 | . 3 2 Max Kills in Single Turn 2 | 1 2 1 Gunslinging . | . . . Exploded 1 | . . 1 Melee . | . . . Uniques/NPCs Destroyed . | . . . Combat | -11 -10 -10 -------- Run | Yrd Mat Min Hostile Shots Fired 83 | . 72 11 Missed 21 | . 20 1 Damage Taken 837 | . 491 346 Core 261 | . 114 147 Absorbed by Shields . | . . . Core Remaining (%) 100 | 100 . . Volleys Fired 54 | 10 38 6 Largest 2 | 2 2 2 Hottest 60 | 40 60 40 Shots Fired 97 | 20 70 7 Gun 92 | 20 70 2 Cannon . | . . . Launcher 5 | . . 5 Special . | . . . Kinetic 77 | 20 55 2 Thermal . | . . . Explosive 5 | . . 5 Electromagnetic 15 | . 15 . Robot Hit Streak 5 | 3 5 4 Robot Miss Streak 5 | 2 5 1 Penetration Max . | . . . Secondary Targets 2 | . 2 . Max Gunslinging Chain 1 | . 1 . Shots Hit Robots 55 | 11 43 1 Core Hits 24 | 6 13 5 Critical Kills . | . . . Critical Parts Destroyed 1 | . 1 . Critical Strikes 1 | . 1 . Destroy 1 | . 1 . Melee Attacks 19 | . 19 . Impact . | . . . Slashing 19 | . 19 . Piercing . | . . . Sneak Attacks 3 | . 3 . Combat Hostiles . | . . . Follow-up Attacks . | . . . Damage Inflicted 1114 | 145 686 283 Guns 725 | 145 569 11 Cannons . | . . . Explosions 246 | . . 246 Melee 114 | . 114 . Ramming 29 | . 3 26 Kinetic 603 | 145 447 11 Thermal . | . . . Explosive 246 | . . 246 Electromagnetic 122 | . 122 . Impact . | . . . Slashing 114 | . 114 . Piercing . | . . . Highest Corruption 2 | . 1 2 Average Corruption 1 | . 1 1 Corruption Purged . | . . . Corruption Blocked . | . . . Effects 16 | . 12 4 Message Errors 4 | . 2 2 Matter Fused 5 | . 4 1 Heat Flow Errors 1 | . 1 . Energy Discharges 2 | . 1 1 Data Loss (minor) 3 | . 3 . Data Loss (major) 1 | . 1 . Overload Shots . | . . . Overflow Damage 18 | . 15 3 Projectiles . | . . . Explosions . | . . . Melee 18 | . 15 3 Knockbacks 1 | . . 1 Impact 1 | . . 1 Kinetic . | . . . Secondary . | . . . Self-Inflicted Damage 13 | . 1 12 Shots . | . . . Rammed 4 | . 1 3 Targets Rammed 4 | . 1 3 Kicked . | . . . Crushed . | . . . Highest Temperature 144 | . 144 22 Average Temperature 55 | . 62 18 Received Heat Transfer 186 | . 132 54 Siege Activations . | . . . Robots Corrupted . | . . . Combat Hostiles . | . . . Parts Fried . | . . . Impact Corruptions 1 | . . 1 Robots Melted . | . . . Combat Hostiles . | . . . Parts Melted . | . . . Heat Transferred . | . . . Parts Sabotaged . | . . . Parts Stolen . | . . . Parts Stripped . | . . . Power Chain Reactions . | . . . Missiles Intercepted . | . . . Alert | -11 -10 -10 ------- Run | Yrd Mat Min Peak Influence 114 | 25 114 108 Initial 42 | . 16 42 Average 51 | 14 44 84 Maximum Alert Level . | . . . Low Security (%) 100 | 100 100 100 Level 1 . | . . . Level 2 . | . . . Level 3 . | . . . Level 4 . | . . . Level 5 . | . . . High Security . | . . . Max Security . | . . . Squads Dispatched 3 | . 3 . Investigation 1 | . 1 . Extermination . | . . . Reinforcement 2 | . 2 . Assault . | . . . Garrison . | . . . Intercept . | . . . Searches Triggered . | . . . Construction Impeded . | . . . Haulers Reinforced . | . . . Active Scanning Responses . | . . . Cargo Convoy Interrupts . | . . . Stealth | -11 -10 -10 --------- Run | Yrd Mat Min Distress Signals . | . . . Communications Jammed . | . . . Distress Signals . | . . . Times Spotted 24 | . 20 4 Peak Tracking Total 4 | . 4 2 Tactical Retreats 1 | . 1 . Traps | -11 -10 -10 ------- Run | Yrd Mat Min Traps Triggered . | . . . Indirectly . | . . . Trap Hack Attempts . | . . . Triggered . | . . . Disarmed . | . . . Reprogrammed . | . . . Reused . | . . . Traps Extracted . | . . . Installed . | . . . Triggered . | . . . Machines | -11 -10 -10 ---------- Run | Yrd Mat Min Machines Disabled . | . . . Max in Single Turn . | . . . Machines Repaired . | . . . Machines Dismantled . | . . . Machines Sabotaged . | . . . Overloaded Fab Kills . | . . . Hacking | -11 -10 -10 --------- Run | Yrd Mat Min Machines Accessed 6 | . 6 . Terminals 5 | . 5 . Fabricators . | . . . Repair Stations . | . . . Recycling Units 1 | . 1 . Scanalyzers . | . . . Garrison Access . | . . . Total Hacks 19 | . 19 . Successful 10 | . 10 . Failed 9 | . 9 . Catastrophic . | . . . Database Lockouts . | . . . Manual 13 | . 13 . Terminals 17 | . 17 . Fabricators . | . . . Repair Stations . | . . . Recycling Units 2 | . 2 . Scanalyzers . | . . . Garrison Access . | . . . Terminal Hacks 5 | . 5 . Terminal Index 1 | . 1 . Unreport Threat 1 | . 1 . Locate Traps 1 | . 1 . Zone Layout 2 | . 2 . Fabricator Hacks . | . . . Repair Station Hacks . | . . . Recycling Unit Hacks 1 | . 1 . Retrieve Components 1 | . 1 . Scanalyzer . | . . . Garrison Access Hacks . | . . . Unauthorized Hacks 4 | . 4 . Terminals 3 | . 3 . Botnet 3 | . 3 . Fabricators . | . . . Repair Stations . | . . . Recycling Units 1 | . 1 . Monitor 1 | . 1 . Scanalyzers . | . . . Garrison Access . | . . . Data Cores Recovered . | . . . Used . | . . . Hacking Detections 5 | . 5 . Full Trace Events 2 | . 2 . Feedback Events 1 | . 1 . Corruption 1 | . 1 . Feedback Blocked . | . . . Robot Schematics Acquired . | . . . Robots Built . | . . . Authchips . | . . . Time . | . . . Total Robot Build Rating . | . . . Part Schematics Acquired . | . . . Parts Built . | . . . Authchips . | . . . Time . | . . . Total Part Build Rating . | . . . Parts Repaired . | . . . Time . | . . . Parts Recycled . | . . . Recycled Matter . | . . . Retrieved Matter . | . . . Retrieved Components . | . . . Parts Scanalyzed . | . . . Part Schematics Acquired . | . . . Parts Damaged . | . . . Bothacking | -11 -10 -10 ------------ Run | Yrd Mat Min Used RIF Installer . | . . . Robots Hacked . | . . . Non-combat . | . . . Combat . | . . . Robot Hacks Applied . | . . . Relay Couplers Released . | . . . Fabnet Peak Effective % . | . . . Robots Rewired . | . . . Allies Hacked . | . . . Hacks Repelled . | . . . Allies | -11 -10 -10 -------- Run | Yrd Mat Min Total Allies . | . . . Largest Group . | . . . Highest-Rated Group . | . . . Highest-Rated Ally . | . . . Total Orders . | . . . Ally Attacks . | . . . Total Damage . | . . . Kills . | . . . Allies Corrupted . | . . . Allies Melted . | . . . Intel | -11 -10 -10 ------- Run | Yrd Mat Min Robot Analysis Total . | . . . Derelict Logs Recovered 1 | . . 1 Drone Launches . | . . . Drone Recoveries . | . . . Exploration | -11 -10 -10 ------------- Run | Yrd Mat Min Turns Passed 1675 | 111 1199 365 Spaces Moved 1183 | 65 809 309 Core . | . . . Treads . | . . . Legs 423 | 65 358 . Wheels 760 | . 451 309 Hover . | . . . Flight . | . . . Fastest Speed 100 | 120 100 100 Average Speed 107 | 120 108 100 Slowest Speed 120 | 120 120 100 Overloaded Moves . | . . . Propulsion Burnouts . | . . . Robots Hopped . | . . . Cave-ins Triggered 1 | . . 1 Exploration Rate (%) 49 | 3 86 60 Regions Visited 2 Branch Regions 1 Pre-discovered Areas 1 | . . 1 Known Exits Taken . | . . . Unknown Exits Taken 2 | 1 1 . Scrap Searched 1 | . . 1 Spaces Dug 7 | . 7 . Terrain Destroyed 21 | . 7 14 Melee 7 | . 7 . Projectile . | . . . AOE 14 | . . 14 Terrain Rammed . | . . . Walls Destroyed . | . . . Machines Disabled . | . . . Actions | -11 -10 -10 --------- Run | Yrd Mat Min Total 1449 | 77 1016 356 Wait 138 | . 106 32 Move 1181 | 64 808 309 Hop . | . . . Pick Up 20 | 1 17 2 Fast Attach 1 | 1 . . Attach 2 | . 2 . Detach . | . . . Swap 20 | 1 15 4 Drop 10 | . 10 . Fire 54 | 10 38 6 Melee 19 | . 19 . Ram 4 | . 1 3 Kick . | . . . Crush . | . . . Escape Stasis . | . . . Rewire . | . . . Trap . | . . . Miscellaneous . | . . . Route ------- -11/Scrapyard -10/Materials (discovered 4 exits: [*Mat x2] / [*Min x2]) -10/Mines (discovered 1 exit: [*Mat]) History --------- Turn | Location | Event 15 | -11/Scrapyard | Discovered new exit (range 3) 112 | -11/Scrapyard | Entered Materials 220 | -10/Materials | Discovered new exit (range 3) 310 | -10/Materials | Build established: Mutant 1105 | -10/Materials | Discovered new exit (range 9) 1214 | -10/Materials | Discovered new exit (range 12) 1253 | -10/Materials | Discovered new exit (range 6) 1311 | -10/Materials | Entered Mines 1337 | -10/Mines | Learned location of Storage (-7) 1438 | -10/Mines | Core integrity fell below 50% 1469 | -10/Mines | Received a Rocket Launcher from a helpful Derelict 1498 | -10/Mines | Discovered new exit (range 6) 1635 | -10/Mines | Assembled infested the area 1672 | -10/Mines | Crushed by falling debris 1675 | -10/Mines | Core integrity fell below 20% 1676 | -10/Mines | Destroyed by D-53 Grenadier with Mini Grenade Launcher Last Messages --------------- 01621_ K-01 Serf collects debris. 01629_ CVCKF3E>VCJGPHGDOPAWXF 01631_ K-01 Serf collects debris. 01635_ ALERT: Infestation in the mines, dispatching Demolisher response squad. 01638_ K-01 Serf collects debris. 01652_ Slammed into K-01 Serf. 01662_ Slammed into T-07 Excavator. 01662_ Destroyed Seismic Detector. 01662_ T-07 Excavator system corrupted by crushing effect. 01662_ T-07 Excavator knocked back. 01663_ T-07 Excavator system terminally corrupted. 01663_ Acquired 24 matter. 01667_ C-30 ARC bursts open, deploying its payload. 01667_ D-53 Grenadier unfolds itself. 01670_ Assault Rifle destroyed. 01671_ The unstable cave ceiling collapses. 01672_ Crushed by falling debris. 01672_ Ion Engine destroyed. 01672_ System corrupted by crushing effect (+1). 01674_ The unstable cave ceiling collapses. Map ----- +----------------------------------------------------+ | ?????????????????????????????????????????????????? | | ?????????????????????????????????????????????????? | | ?????????????????????????????????????????????????? | | ?????????????????????????????????????????????????? | | ?????????????????????????????????????????????????? | | ?????????????????????????????????????????????????? | | ?????????????????????????????????????????????????? | | ?????????????????????????????????????????????????? | | ?????????????????????????????????????????????????? | | ?????????????????????????????????????????????????? | | ?????????????????????????????????????????????????? | | ????????????????????????????????????####?????????? | | ??????????????????????????????????## ##????????? | | ?????????????????????????????????## #????????? | | ?????????????????????????????????# #????????? | | ????????????????? ??????????????# #?????????? | | ?????????????????? ???? #???????# ##????????? | | ??????????????????# ? ##?????## ##???????? | | ??????????????????# ##????## #???????? | | ????????????????### ?????# #???????? | | ????????????????? ?????# #???????? | | ??????????????????# """ #?????# ##???????? | | ???????????????????# """ #?????# ##????????? | | ????????????????????# """ ####### #?????????? | | ????????????????????# #?????????? | | ????????????????????# @ ##?????????? | | ??????????????????### ####??????????? | | ###???????????????# ##?????????????? | | #??????????????# ##??????????????? | | #?????????????????# ## ##???????????????? | | ??????????????????#??# ###????????????????? | | ??????????????##### # #??????????????????? | | ?????????# ##??????????????????? | | ?????????# d #???????####????????? | | ??????????####### d ##??????## ##???????? | | ???????????????##" ##### ##??????# #???????? | | ??????????????##"%"##???## #####?## ##??????? | | ?????????????## "#?????# ### ##?????? | | #????????????# #?????# #?????? | | ?????????????# #????## """ #????? | | ????????????# """ ?????## ### """ #???? | | ??????????? """ ####??## ##?## """ #??? | | ??????????? ?""" #####=#???## #??? | | ???????????##????? ## #????# #??? | | ????????????????????# ## ####????## ##### ##??? | | ????????????????????# #????????####????###???? | | ???????????????????## ####??########????????????? | | ??????????????????## #??#### #####????????? | | ??????????????????# #### ##???????? | | ????????????####### #???????? | +----------------------------------------------------+ Best States ------------- Heat Dissipation 25 Energy Generation 10 Energy Capacity 250 Matter Stores 300 Matter Capacity 300 Sight Range 16 Terrain Scan Density 10 Armor Coverage 150 Propulsion Shielding 33 Evasion (%) 55 Item Schematics ----------------- None Robot Schematics ------------------ None Fabricated ------------ Nothing Alien Tech Used ----------------- None Achievements -------------- None Challenges ------------ None Game ------ Seed MetaDirtyBiocell Manual? 0 Play Time 00:23:00 Cumulative 100.5 hours Start 2024.01.10 @ 22:43:12 End 2024.01.10 @ 23:04:46 Sessions 1 Manual Loads 0 Difficulty Rogue Special Mode None Game No. 97 Rogue 97 Adventurer 0 Explorer 0 Win Type - Total 0 Types 0/0/0/0/0/0/0/0/0 Lore% 34 Gallery% 47 Achievement% 36 Wizard Run 0 Options --------- ASCII 0 Keyboard 0 Movement Numpad Keybinds 0 Fullscreen 1 Font 24/Proggy Map View 113x50 Zoom Use 0% Tactical HUD 1 Map Filters NONE Filters NONE Steam 1 RUN: fbc9ea6c-5a55-469f-912c-e024c59a03b0